Workbook

Sheet User Guide
A9: Een dashboard voor logistiek kritische processen
A11: In deze excel sheet vindt u een voorbeeld van een dashboard voor logistiek kritische processen.
A13: Een korte toelichting:
A14: De groene tabbladen geven de dashboards weer voor een drietal building blocks, plus een dashboard op tactisch en strategisch niveau.
A15: De waarden die worden weergegeven in de verschillene grafieken worden gehaald uit de oranje tabbladen (zie onderaan). Alle data is gefingeerd.
A17: Ter illustratie is voor het Dashboard_WH_Operational de link met de achterliggende parameters te zien. Hierdoor is te zien hoe getallen
A18: uit een achterliggende excelsheet met parameters kan worden afgeleid.
A19: Door middel van pivot tables wordt (de gefingeerde data in het tabblad Data_WH_outb) samengevat weergegeven in tabblad WH_Summary.
A21: Door het aanpassen van getallen in de oranje tabbladen kunnen de waarden in de dashboards worden veranderd.
A23: Wilt u meer weten over welke KPI's OneLogistics hanteert in de verschillende building blocks, neem dan gerust contact op.
A28: Dit product is een resultaat van de Dinalog Conversion Factory (uitgevoerd door de Technische Universiteit Eindhoven).

Sheet Dashboard TR_Operational
R2: Contact | S2: XXXXXXXXXXXXXXXXXXX
R3: Phone | S3: XXXXXXXXXXXXXXXXXXX
R4: Email | S4: XXXXXXXXXXXXXXXXXXX
Z6: Year to Date | AB6: 2012
B7: Delivery Performance Summary
B8: Shipment Performance
B30: Shipment Quantity/Quality
B51: Sustainability
B74: Order Processing | V74: Documentation

Sheet Dashboard WH_Operational
R2: Contact | S2: XXXXXXXXXXXXXXXXXXX
R3: Phone | S3: XXXXXXXXXXXXXXXXXXX
R4: Email | S4: XXXXXXXXXXXXXXXXXXX
Z6: Year to Date | AB6: 2012
B7: Delivery Performance Summary
B8: Order Fulfilment
B14: Order Quantity/Quality
B36: Order Completeness

Sheet Dashboard CC_Operational
R2: Contact | S2: XXXXXXXXXXXXXXXXXXX
R3: Phone | S3: XXXXXXXXXXXXXXXXXXX
R4: Email | S4: XXXXXXXXXXXXXXXXXXX
Z6: Year to Date | AB6: 2012
B7: Delivery Performance Summary
B8: Order Fulfilment
B36: Order Completeness

Sheet Dashboard TACTICAL
C2: Contact | D2: XXXXXXXXXXXXXXXXXXX
C3: Phone | D3: XXXXXXXXXXXXXXXXXXX
C4: Email | D4: XXXXXXXXXXXXXXXXXXX
O6: Year to Date | P6: 2012
B7: Delivery Performance Summary

Sheet Dashboard STRATEGIC
G2: Contact | H2: XXXXXXXXXXXXXXXXXXX
G3: Phone | H3: XXXXXXXXXXXXXXXXXXX
G4: Email | H4: XXXXXXXXXXXXXXXXXXX
K6: Year to Date | L6: 2012
C7: Delivery Performance Summary

Sheet Parameters
C1: Overall Target | D1: Montly Target | Q1: Ranges needed for the speedometers in the dashboard [Upper bound]
D2: Jan | E2: Feb | F2: Mrt | G2: Apr | H2: Mei | I2: Jun | J2: Jul | K2: Aug | L2: Sep | M2: Okt | N2: Nov | O2: Dec | P2: Representation | Q2: OK | R2: Acceptable | S2: NOK
B3: Strategic | C3: Overall
B4: On time | C4: 0.98 | D4: 0.98 | E4: 0.98 | F4: 0.98 | G4: 0.98 | P4: Speedometer | Q4: 100 | R4: 80 | S4: 70
B5: a KPI | C5: 0.98 | D5: 0.98 | E5: 0.98 | F5: 0.98 | G5: 0.98 | P5: Speedometer | Q5: 100 | R5: 80 | S5: 70
B7: Tactical | C7: Overall
B8: Delivery Location Accuracy | C8: 0.98 | D8: 0.98 | E8: 0.98 | F8: 0.98 | G8: 0.98 | P8: Speedometer | Q8: 100 | R8: 80 | S8: 70
B9: On time | P9: Speedometer | Q9: 100 | R9: 80 | S9: 70
B10: Average delay | P10: Pie Chart
B11: a KPI | P11: ---
B12: a KPI | P12: ---
B13: a KPI | P13: ---
B14: a KPI | C14: 0.9 | D14: 0.9 | E14: 0.9 | F14: 0.9 | G14: 0.9 | P14: Line Chart
B15: a KPI | P15: Speedometer | Q15: 100 | R15: 80 | S15: 70
B16: Total Logistics Cost | P16: Line Chart
B17: a KPI | P17: Area Chart
B18: Operational | C18: Target
B19: Transportation
B20: Shipments arriving to the correct location | C20: 0.95 | D20: 0.95 | E20: 0.95 | F20: 0.95 | G20: 0.95
B21: On Time Pickup | C21: 0.98 | D21: 0.98 | E21: 0.98 | F21: 0.98 | G21: 0.98 | P21: Bar Chart
B22: Avg Lead Time | C22: 2.3 | D22: 2.3 | E22: 2.3 | F22: 2.3 | G22: 2.3 | P22: Bar Chart
B23: On Time Delivery | C23: 0.95 | D23: 0.95 | E23: 0.95 | F23: 0.95 | G23: 0.95 | P23: Speedometer | Q23: 100 | R23: 80 | S23: 70
B24: Avg Delivery Delay | P24: Pie Chart
B25: Confirmation Delay | P25: Pie Chart
B26: a KPI | P26: Bar Chart
B27: a KPI | C27: 0.95 | D27: 0.95 | E27: 0.95 | F27: 0.95 | G27: 0.95 | P27: Line Chart
B28: a KPI | C28: 0.95 | D28: 0.95 | E28: 0.95 | F28: 0.95 | G28: 0.95 | P28: Bar Chart
B29: a KPI | C29: 0.98 | D29: 0.98 | E29: 0.98 | F29: 0.98 | G29: 0.98 | P29: Bar Chart
B30: Shipment completeness | P30: Speedometer | Q30: 100 | R30: 80 | S30: 70
B31: a KPI
B32: Invoice Accuracy | P32: Speedometer | Q32: 100 | R32: 80 | S32: 70
B33: a KPI | P33: Area chart
B34: a KPI | P34: Line chart
B35: Warehousing | C35: Target
B36: On Time Dispatching | C36: 0.95 | D36: 0.95 | E36: 0.95 | F36: 0.95 | G36: 0.95 | P36: Speedometer | Q36: 100 | R36: 80 | S36: 70
B37: Avg Dispatching Delay | P37: Pie chart
B38: Picking Accuracy | C38: 0.95 | D38: 0.95 | E38: 0.95 | F38: 0.95 | G38: 0.95 | P38: Bar chart
B39: Transferred shipments with proper packing | C39: 0.95 | D39: 0.95 | E39: 0.95 | F39: 0.95 | G39: 0.95 | P39: Bar chart
B40: WH volume/weight Accuracy | C40: 0.95 | D40: 0.95 | E40: 0.95 | F40: 0.95 | G40: 0.95 | P40: Bar chart
B41: WH transfer completeness | C41: 0.95 | D41: 0.95 | E41: 0.95 | F41: 0.95 | G41: 0.95 | P41: Bar chart
B42: WH Order compliance | C42: 0.98 | D42: 0.98 | E42: 0.98 | F42: 0.98 | G42: 0.98 | P42: Speedometer | Q42: 100 | R42: 80 | S42: 70
B43: Total storage cost
B44: Packaging | C44: Target
B45: a KPI | C45: 0.95 | D45: 0.95 | E45: 0.95 | F45: 0.95 | G45: 0.95
B46: a KPI | C46: 0.95 | D46: 0.95 | E46: 0.95 | F46: 0.95 | G46: 0.95
B47: Compliance Inspection | C47: Target
B48: a KPI
B49: a KPI
B50: a KPI
B51: Compliance Documentation Accuracy
B52: Economic penalizations
B53: Clearing Customs | C53: Target
B54: CC On Time | C54: 0.95 | D54: 0.95 | E54: 0.95 | F54: 0.95 | G54: 0.95 | P54: Speedometer | Q54: 100 | R54: 80 | S54: 70
B55: a KPI
B56: CC Documentation Accuracy | C56: 0.95 | D56: 0.95 | E56: 0.95 | F56: 0.95 | G56: 0.95 | P56: Bar Chart
B57: a KPI
B58: a KPI | P58: Line Chart
B59: a KPI
B60: a KPI
B62: Tab color coded legend
B63: Input Data and Calculations
B64: Data Summary (per Building Block)
B65: Dashboard
B67: Assumptions
B68: Export Market - All shipments have to clear customs
B69: Expected time to clear customs [hrs] | C69: 12
B70: The promised delivery date is 3 days after receiving the sales order
B71: If the shipment has the category of emergency, the agreed date is 2 days
B72: Storage cost is 15% of the transportation cost

Sheet Data_WH_outb
A1: FICTIVE DATA FOR DEMONSTRATION PURPOSES
A3: The cut off time is 12 or 16
A4: Input Data TR
A5: Input Data WH
A6: Calculation
A7: if the order is received before 12. the dispatch time is at 16, if not, it would be the following day at 12.
F8: Agreed dispatching date | H8: Real Dispatching Date
A9: Shipment ID | B9: Month | C9: Date | D9: Time | E9: Storage cost | F9: Day | G9: Time | H9: Day | I9: Time | J9: On Time Dispatching | K9: Packing Complaints from TR/customer | L9: volume/weight discrepancies | M9: Quantity discrepancies | N9: LeadTime [Hrs] | O9: Dispatching Delay [hrs] | P9: Transferred orders with proper packing | Q9: Volume/Weight Accuracy | R9: Entry location mistake | S9: Entry Location accuracy | T9: Picking accuracy | U9: Damaged orders | V9: Undamaged orders | W9: Packaging mistakes | X9: Orders with proper packaging | Y9: WH transfer completeness | Z9: WH completeness
A10: XXXXX1 | B10: Jan | C10: 2012-01-01 | D10: 9 | E10: 54 | F10: =IF(D10<=12,C10,C10+1) -> 2012-01-01 | G10: =IF(F10-C10=0,16,12) -> 16 | H10: =IF(J10=1,F10,IF(F10=C10,F10+1,F10)) -> 2012-01-01 | I10: =IF(J10=1,G10,IF(F10=H10,16,12)) -> 16 | J10: =IF(RAND()<=0.8,1,0) -> 1 | K10: =IF(RAND()<=0.2,1,0) -> 0 | L10: =IF(RAND()<=0.3,1,0) -> 0 | M10: =IF(RAND()<=0.95,0,1) -> 0 | N10: =IF(H10=C10,I10-D10,(H10-C10)*24+IF(D10-I10=0,0,I10-D10)) -> 7 | O10: =IF(J10=1,"",IF(F10=H10,I10-G10,20)) ->  | P10: =IF(K10=1,0,1) -> 1 | Q10: =IF(L10=1,0,1) -> 1 | R10: =IF(RAND()<=0.95,0,1) -> 0 | S10: =IF(R10=1,0,1) -> 1 | T10: =IF(M10=1,0,1) -> 1 | U10: =IF(RAND()<=0.95,0,1) -> 0 | V10: =IF(U10=1,0,1) -> 1 | W10: =IF(RAND()<=0.9,0,1) -> 0 | X10: =IF(W10=1,0,1) -> 1 | Y10: =AVERAGE(P10,Q10) -> 1 | Z10: =AVERAGE(T10,S10,Y10) -> 1
A11: XXXXX2 | B11: Jan | C11: 2012-01-02 | D11: 8 | E11: 108 | F11: 2012-01-02 | G11: 16 | H11: 2012-01-02 | I11: 16 | J11: =IF(RAND()<=0.8,1,0) -> 1 | K11: =IF(RAND()<=0.2,1,0) -> 1 | L11: =IF(RAND()<=0.3,1,0) -> 0 | M11: =IF(RAND()<=0.95,0,1) -> 0 | N11: 8 | P11: 0 | Q11: 1 | R11: 0 | S11: =IF(R11=1,0,1) -> 1 | T11: 1 | U11: =IF(RAND()<=0.95,0,1) -> 0 | V11: =IF(U11=1,0,1) -> 1 | W11: =IF(RAND()<=0.9,0,1) -> 0 | X11: =IF(W11=1,0,1) -> 1 | Y11: 0.5 | Z11: =AVERAGE(T11,S11,Y11) -> 0.8333333333
A12: XXXXX3 | B12: Jan | C12: 2012-01-03 | D12: 15 | E12: 81 | F12: 2012-01-04 | G12: 12 | H12: 2012-01-04 | I12: 12 | J12: 1 | K12: 0 | L12: 0 | M12: 0 | N12: 21 | P12: 1 | Q12: 1 | R12: 0 | S12: 1 | T12: 1 | U12: 0 | V12: 1 | W12: 0 | X12: 1 | Y12: 1 | Z12: 1
A13: XXXXX4 | B13: Jan | C13: 2012-01-04 | D13: 8 | E13: 54 | F13: 2012-01-04 | G13: 16 | H13: 2012-01-04 | I13: 16 | J13: 1 | K13: 0 | L13: 1 | M13: 0 | N13: 8 | P13: 1 | Q13: 0 | R13: 0 | S13: 1 | T13: 1 | U13: 0 | V13: 1 | W13: 0 | X13: 1 | Y13: 0.5 | Z13: 0.8333333333
A14: XXXXX5 | B14: Jan | C14: 2012-01-05 | D14: 14 | E14: 63 | F14: 2012-01-06 | G14: 12 | H14: 2012-01-06 | I14: 12 | J14: 1 | K14: 0 | L14: 1 | M14: 0 | N14: 22 | P14: 1 | Q14: 0 | R14: 0 | S14: 1 | T14: 1 | U14: 0 | V14: 1 | W14: 0 | X14: 1 | Y14: 0.5 | Z14: 0.8333333333
A15: XXXXX6 | B15: Jan | C15: 2012-01-06 | D15: 15 | E15: 108 | F15: 2012-01-07 | G15: 12 | H15: 2012-01-07 | I15: 16 | J15: 0 | K15: 0 | L15: 0 | M15: 0 | N15: 25 | O15: 4 | P15: 1 | Q15: 1 | R15: 1 | S15: 0 | T15: 1 | U15: 0 | V15: 1 | W15: 0 | X15: 1 | Y15: 1 | Z15: 0.6666666667
A16: XXXXX7 | B16: Jan | C16: 2012-01-07 | D16: 11 | E16: 108 | F16: 2012-01-07 | G16: 16 | H16: 2012-01-07 | I16: 16 | J16: 1 | K16: 1 | L16: 0 | M16: 0 | N16: 5 | P16: 0 | Q16: 1 | R16: 0 | S16: 1 | T16: 1 | U16: 0 | V16: 1 | W16: 0 | X16: 1 | Y16: 0.5 | Z16: 0.8333333333
A17: XXXXX8 | B17: Jan | C17: 2012-01-08 | D17: 9 | E17: 45 | F17: 2012-01-08 | G17: 16 | H17: 2012-01-09 | I17: 12 | J17: 0 | K17: 0 | L17: 0 | M17: 0 | N17: 27 | O17: 20 | P17: 1 | Q17: 1 | R17: 0 | S17: 1 | T17: 1 | U17: 0 | V17: 1 | W17: 0 | X17: 1 | Y17: 1 | Z17: 1
A18: XXXXX9 | B18: Jan | C18: 2012-01-09 | D18: 18 | E18: 81 | F18: 2012-01-10 | G18: 12 | H18: 2012-01-10 | I18: 12 | J18: 1 | K18: 0 | L18: 0 | M18: 0 | N18: 18 | P18: 1 | Q18: 1 | R18: 0 | S18: 1 | T18: 1 | U18: 0 | V18: 1 | W18: 0 | X18: 1 | Y18: 1 | Z18: 1
A19: XXXXX10 | B19: Jan | C19: 2012-01-10 | D19: 12 | E19: 108 | F19: 2012-01-10 | G19: 16 | H19: 2012-01-10 | I19: 16 | J19: 1 | K19: 0 | L19: 1 | M19: 0 | N19: 4 | P19: 1 | Q19: 0 | R19: 0 | S19: 1 | T19: 1 | U19: 0 | V19: 1 | W19: 0 | X19: 1 | Y19: 0.5 | Z19: 0.8333333333
A20: XXXXX11 | B20: Jan | C20: 2012-01-11 | D20: 7 | E20: 108 | F20: 2012-01-11 | G20: 16 | H20: 2012-01-11 | I20: 16 | J20: 1 | K20: 0 | L20: 0 | M20: 0 | N20: 9 | P20: 1 | Q20: 1 | R20: 0 | S20: 1 | T20: 1 | U20: 0 | V20: 1 | W20: 0 | X20: 1 | Y20: 1 | Z20: 1
A21: XXXXX12 | B21: Jan | C21: 2012-01-12 | D21: 10 | E21: 108 | F21: 2012-01-12 | G21: 16 | H21: 2012-01-12 | I21: 16 | J21: 1 | K21: 1 | L21: 1 | M21: 0 | N21: 6 | P21: 0 | Q21: 0 | R21: 0 | S21: 1 | T21: 1 | U21: 0 | V21: 1 | W21: 0 | X21: 1 | Y21: 0 | Z21: 0.6666666667
A22: XXXXX13 | B22: Jan | C22: 2012-01-13 | D22: 19 | E22: 45 | F22: 2012-01-14 | G22: 12 | H22: 2012-01-14 | I22: 12 | J22: 1 | K22: 0 | L22: 0 | M22: 0 | N22: 17 | P22: 1 | Q22: 1 | R22: 0 | S22: 1 | T22: 1 | U22: 0 | V22: 1 | W22: 0 | X22: 1 | Y22: 1 | Z22: 1
A23: XXXXX14 | B23: Jan | C23: 2012-01-14 | D23: 10 | E23: 90 | F23: 2012-01-14 | G23: 16 | H23: 2012-01-15 | I23: 12 | J23: 0 | K23: 0 | L23: 0 | M23: 0 | N23: 26 | O23: 20 | P23: 1 | Q23: 1 | R23: 0 | S23: 1 | T23: 1 | U23: 0 | V23: 1 | W23: 0 | X23: 1 | Y23: 1 | Z23: 1
A24: XXXXX15 | B24: Jan | C24: 2012-01-15 | D24: 18 | E24: 108 | F24: 2012-01-16 | G24: 12 | H24: 2012-01-16 | I24: 16 | J24: 0 | K24: 0 | L24: 0 | M24: 0 | N24: 22 | O24: 4 | P24: 1 | Q24: 1 | R24: 0 | S24: 1 | T24: 1 | U24: 0 | V24: 1 | W24: 0 | X24: 1 | Y24: 1 | Z24: 1
A25: XXXXX16 | B25: Jan | C25: 2012-01-16 | D25: 16 | E25: 63 | F25: 2012-01-17 | G25: 12 | H25: 2012-01-17 | I25: 16 | J25: 0 | K25: 0 | L25: 0 | M25: 0 | N25: 24 | O25: 4 | P25: 1 | Q25: 1 | R25: 1 | S25: 0 | T25: 1 | U25: 0 | V25: 1 | W25: 0 | X25: 1 | Y25: 1 | Z25: 0.6666666667
A26: XXXXX17 | B26: Jan | C26: 2012-01-17 | D26: 12 | E26: 54 | F26: 2012-01-17 | G26: 16 | H26: 2012-01-17 | I26: 16 | J26: 1 | K26: 0 | L26: 1 | M26: 0 | N26: 4 | P26: 1 | Q26: 0 | R26: 0 | S26: 1 | T26: 1 | U26: 0 | V26: 1 | W26: 0 | X26: 1 | Y26: 0.5 | Z26: 0.8333333333
A27: XXXXX18 | B27: Jan | C27: 2012-01-18 | D27: 19 | E27: 63 | F27: 2012-01-19 | G27: 12 | H27: 2012-01-19 | I27: 16 | J27: 0 | K27: 0 | L27: 0 | M27: 0 | N27: 21 | O27: 4 | P27: 1 | Q27: 1 | R27: 0 | S27: 1 | T27: 1 | U27: 0 | V27: 1 | W27: 0 | X27: 1 | Y27: 1 | Z27: 1
A28: XXXXX19 | B28: Jan | C28: 2012-01-19 | D28: 14 | E28: 108 | F28: 2012-01-20 | G28: 12 | H28: 2012-01-20 | I28: 12 | J28: 1 | K28: 0 | L28: 1 | M28: 0 | N28: 22 | P28: 1 | Q28: 0 | R28: 0 | S28: 1 | T28: 1 | U28: 0 | V28: 1 | W28: 0 | X28: 1 | Y28: 0.5 | Z28: 0.8333333333
A29: XXXXX20 | B29: Jan | C29: 2012-01-20 | D29: 16 | E29: 90 | F29: 2012-01-21 | G29: 12 | H29: 2012-01-21 | I29: 12 | J29: 1 | K29: 1 | L29: 1 | M29: 0 | N29: 20 | P29: 0 | Q29: 0 | R29: 0 | S29: 1 | T29: 1 | U29: 0 | V29: 1 | W29: 0 | X29: 1 | Y29: 0 | Z29: 0.6666666667
A30: XXXXX21 | B30: Jan | C30: 2012-01-21 | D30: 15 | E30: 63 | F30: 2012-01-22 | G30: 12 | H30: 2012-01-22 | I30: 16 | J30: 0 | K30: 0 | L30: 0 | M30: 0 | N30: 25 | O30: 4 | P30: 1 | Q30: 1 | R30: 0 | S30: 1 | T30: 1 | U30: 0 | V30: 1 | W30: 0 | X30: 1 | Y30: 1 | Z30: 1
A31: XXXXX22 | B31: Jan | C31: 2012-01-22 | D31: 17 | E31: 63 | F31: 2012-01-23 | G31: 12 | H31: 2012-01-23 | I31: 12 | J31: 1 | K31: 0 | L31: 0 | M31: 0 | N31: 19 | P31: 1 | Q31: 1 | R31: 0 | S31: 1 | T31: 1 | U31: 0 | V31: 1 | W31: 0 | X31: 1 | Y31: 1 | Z31: 1
A32: XXXXX23 | B32: Jan | C32: 2012-01-23 | D32: 18 | E32: 45 | F32: 2012-01-24 | G32: 12 | H32: 2012-01-24 | I32: 12 | J32: 1 | K32: 1 | L32: 1 | M32: 0 | N32: 18 | P32: 0 | Q32: 0 | R32: 0 | S32: 1 | T32: 1 | U32: 0 | V32: 1 | W32: 0 | X32: 1 | Y32: 0 | Z32: 0.6666666667
A33: XXXXX24 | B33: Jan | C33: 2012-01-24 | D33: 11 | E33: 90 | F33: 2012-01-24 | G33: 16 | H33: 2012-01-24 | I33: 16 | J33: 1 | K33: 1 | L33: 1 | M33: 0 | N33: 5 | P33: 0 | Q33: 0 | R33: 0 | S33: 1 | T33: 1 | U33: 0 | V33: 1 | W33: 0 | X33: 1 | Y33: 0 | Z33: 0.6666666667
A34: XXXXX25 | B34: Jan | C34: 2012-01-25 | D34: 18 | E34: 36 | F34: 2012-01-26 | G34: 12 | H34: 2012-01-26 | I34: 12 | J34: 1 | K34: 0 | L34: 1 | M34: 0 | N34: 18 | P34: 1 | Q34: 0 | R34: 0 | S34: 1 | T34: 1 | U34: 0 | V34: 1 | W34: 0 | X34: 1 | Y34: 0.5 | Z34: 0.8333333333
A35: XXXXX26 | B35: Jan | C35: 2012-01-26 | D35: 17 | E35: 108 | F35: 2012-01-27 | G35: 12 | H35: 2012-01-27 | I35: 16 | J35: 0 | K35: 0 | L35: 0 | M35: 0 | N35: 23 | O35: 4 | P35: 1 | Q35: 1 | R35: 0 | S35: 1 | T35: 1 | U35: 0 | V35: 1 | W35: 0 | X35: 1 | Y35: 1 | Z35: 1
A36: XXXXX27 | B36: Jan | C36: 2012-01-27 | D36: 16 | E36: 36 | F36: 2012-01-28 | G36: 12 | H36: 2012-01-28 | I36: 12 | J36: 1 | K36: 0 | L36: 1 | M36: 0 | N36: 20 | P36: 1 | Q36: 0 | R36: 0 | S36: 1 | T36: 1 | U36: 0 | V36: 1 | W36: 0 | X36: 1 | Y36: 0.5 | Z36: 0.8333333333
A37: XXXXX28 | B37: Jan | C37: 2012-01-28 | D37: 18 | E37: 63 | F37: 2012-01-29 | G37: 12 | H37: 2012-01-29 | I37: 12 | J37: 1 | K37: 0 | L37: 1 | M37: 0 | N37: 18 | P37: 1 | Q37: 0 | R37: 0 | S37: 1 | T37: 1 | U37: 0 | V37: 1 | W37: 0 | X37: 1 | Y37: 0.5 | Z37: 0.8333333333
A38: XXXXX29 | B38: Jan | C38: 2012-01-29 | D38: 14 | E38: 63 | F38: 2012-01-30 | G38: 12 | H38: 2012-01-30 | I38: 12 | J38: 1 | K38: 0 | L38: 1 | M38: 0 | N38: 22 | P38: 1 | Q38: 0 | R38: 0 | S38: 1 | T38: 1 | U38: 0 | V38: 1 | W38: 1 | X38: 0 | Y38: 0.5 | Z38: 0.8333333333
A39: XXXXX30 | B39: Jan | C39: 2012-01-30 | D39: 7 | E39: 90 | F39: 2012-01-30 | G39: 16 | H39: 2012-01-30 | I39: 16 | J39: 1 | K39: 0 | L39: 0 | M39: 1 | N39: 9 | P39: 1 | Q39: 1 | R39: 0 | S39: 1 | T39: 0 | U39: 0 | V39: 1 | W39: 1 | X39: 0 | Y39: 1 | Z39: 0.6666666667
A40: XXXXX31 | B40: Jan | C40: 2012-01-31 | D40: 15 | E40: 36 | F40: 2012-02-01 | G40: 12 | H40: 2012-02-01 | I40: 12 | J40: 1 | K40: 0 | L40: 0 | M40: 0 | N40: 21 | P40: 1 | Q40: 1 | R40: 0 | S40: 1 | T40: 1 | U40: 0 | V40: 1 | W40: 0 | X40: 1 | Y40: 1 | Z40: 1
A41: XXXXX32 | B41: Feb | C41: 2012-02-01 | D41: 19 | E41: 108 | F41: 2012-02-02 | G41: 12 | H41: 2012-02-02 | I41: 12 | J41: 1 | K41: 0 | L41: 0 | M41: 0 | N41: 17 | P41: 1 | Q41: 1 | R41: 0 | S41: 1 | T41: 1 | U41: 0 | V41: 1 | W41: 0 | X41: 1 | Y41: 1 | Z41: 1
A42: XXXXX33 | B42: Feb | C42: 2012-02-02 | D42: 9 | E42: 81 | F42: =IF(D42<=12,C42,C42+1) -> 2012-02-02 | G42: =IF(F42-C42=0,16,12) -> 16 | H42: =IF(J42=1,F42,IF(F42=C42,F42+1,F42)) -> 2012-02-02 | I42: =IF(J42=1,G42,IF(F42=H42,16,12)) -> 16 | J42: 1 | K42: 0 | L42: 0 | M42: 0 | N42: =IF(H42=C42,I42-D42,(H42-C42)*24+IF(D42-I42=0,0,I42-D42)) -> 7 | O42: =IF(J42=1,"",IF(F42=H42,I42-G42,20)) ->  | P42: =IF(K42=1,0,1) -> 1 | Q42: =IF(L42=1,0,1) -> 1 | R42: 0 | S42: 1 | T42: =IF(M42=1,0,1) -> 1 | U42: 0 | V42: 1 | W42: 0 | X42: 1 | Y42: =AVERAGE(P42,Q42) -> 1 | Z42: 1
A43: XXXXX34 | B43: Feb | C43: 2012-02-03 | D43: 7 | E43: 81 | F43: 2012-02-03 | G43: 16 | H43: 2012-02-03 | I43: 16 | J43: 1 | K43: 0 | L43: 0 | M43: 0 | N43: 9 | P43: 1 | Q43: 1 | R43: 0 | S43: 1 | T43: 1 | U43: 0 | V43: 1 | W43: 0 | X43: 1 | Y43: 1 | Z43: 1
A44: XXXXX35 | B44: Feb | C44: 2012-02-04 | D44: 12 | E44: 18 | F44: 2012-02-04 | G44: 16 | H44: 2012-02-04 | I44: 16 | J44: 1 | K44: 0 | L44: 0 | M44: 0 | N44: 4 | P44: 1 | Q44: 1 | R44: 0 | S44: 1 | T44: 1 | U44: 0 | V44: 1 | W44: 0 | X44: 1 | Y44: 1 | Z44: 1
A45: XXXXX36 | B45: Feb | C45: 2012-02-05 | D45: 16 | E45: 36 | F45: 2012-02-06 | G45: 12 | H45: 2012-02-06 | I45: 16 | J45: 0 | K45: 0 | L45: 0 | M45: 0 | N45: 24 | O45: 4 | P45: 1 | Q45: 1 | R45: 0 | S45: 1 | T45: 1 | U45: 0 | V45: 1 | W45: 0 | X45: 1 | Y45: 1 | Z45: 1
A46: XXXXX37 | B46: Feb | C46: 2012-02-06 | D46: 14 | E46: 108 | F46: 2012-02-07 | G46: 12 | H46: 2012-02-07 | I46: 12 | J46: 1 | K46: 0 | L46: 0 | M46: 0 | N46: 22 | P46: 1 | Q46: 1 | R46: 0 | S46: 1 | T46: 1 | U46: 0 | V46: 1 | W46: 0 | X46: 1 | Y46: 1 | Z46: 1
A47: XXXXX38 | B47: Feb | C47: 2012-02-07 | D47: 8 | E47: 108 | F47: 2012-02-07 | G47: 16 | H47: 2012-02-07 | I47: 16 | J47: 1 | K47: 0 | L47: 0 | M47: 0 | N47: 8 | P47: 1 | Q47: 1 | R47: 0 | S47: 1 | T47: 1 | U47: 0 | V47: 1 | W47: 1 | X47: 0 | Y47: 1 | Z47: 1
A48: XXXXX39 | B48: Feb | C48: 2012-02-08 | D48: 15 | E48: 108 | F48: 2012-02-09 | G48: 12 | H48: 2012-02-09 | I48: 12 | J48: 1 | K48: 0 | L48: 1 | M48: 0 | N48: 21 | P48: 1 | Q48: 0 | R48: 0 | S48: 1 | T48: 1 | U48: 0 | V48: 1 | W48: 0 | X48: 1 | Y48: 0.5 | Z48: 0.8333333333
A49: XXXXX40 | B49: Feb | C49: 2012-02-09 | D49: 9 | E49: 63 | F49: 2012-02-09 | G49: 16 | H49: 2012-02-09 | I49: 16 | J49: 1 | K49: 0 | L49: 0 | M49: 0 | N49: 7 | P49: 1 | Q49: 1 | R49: 0 | S49: 1 | T49: 1 | U49: 0 | V49: 1 | W49: 0 | X49: 1 | Y49: 1 | Z49: 1
A50: XXXXX41 | B50: Feb | C50: 2012-02-10 | D50: 7 | E50: 63 | F50: 2012-02-10 | G50: 16 | H50: 2012-02-10 | I50: 16 | J50: 1 | K50: 0 | L50: 0 | M50: 0 | N50: 9 | P50: 1 | Q50: 1 | R50: 0 | S50: 1 | T50: 1 | U50: 0 | V50: 1 | W50: 0 | X50: 1 | Y50: 1 | Z50: 1
A51: XXXXX42 | B51: Feb | C51: 2012-02-11 | D51: 16 | E51: 81 | F51: 2012-02-12 | G51: 12 | H51: 2012-02-12 | I51: 12 | J51: 1 | K51: 1 | L51: 0 | M51: 0 | N51: 20 | P51: 0 | Q51: 1 | R51: 0 | S51: 1 | T51: 1 | U51: 0 | V51: 1 | W51: 0 | X51: 1 | Y51: 0.5 | Z51: 0.8333333333
A52: XXXXX43 | B52: Feb | C52: 2012-02-12 | D52: 10 | E52: 90 | F52: 2012-02-12 | G52: 16 | H52: 2012-02-13 | I52: 12 | J52: 0 | K52: 0 | L52: 0 | M52: 0 | N52: 26 | O52: 20 | P52: 1 | Q52: 1 | R52: 0 | S52: 1 | T52: 1 | U52: 0 | V52: 1 | W52: 0 | X52: 1 | Y52: 1 | Z52: 1
A53: XXXXX44 | B53: Feb | C53: 2012-02-13 | D53: 7 | E53: 63 | F53: 2012-02-13 | G53: 16 | H53: 2012-02-13 | I53: 16 | J53: 1 | K53: 0 | L53: 0 | M53: 0 | N53: 9 | P53: 1 | Q53: 1 | R53: 0 | S53: 1 | T53: 1 | U53: 0 | V53: 1 | W53: 0 | X53: 1 | Y53: 1 | Z53: 1
A54: XXXXX45 | B54: Feb | C54: 2012-02-14 | D54: 15 | E54: 63 | F54: 2012-02-15 | G54: 12 | H54: 2012-02-15 | I54: 12 | J54: 1 | K54: 0 | L54: 0 | M54: 0 | N54: 21 | P54: 1 | Q54: 1 | R54: 0 | S54: 1 | T54: 1 | U54: 1 | V54: 0 | W54: 0 | X54: 1 | Y54: 1 | Z54: 1
A55: XXXXX46 | B55: Feb | C55: 2012-02-15 | D55: 12 | E55: 36 | F55: 2012-02-15 | G55: 16 | H55: 2012-02-15 | I55: 16 | J55: 1 | K55: 0 | L55: 0 | M55: 0 | N55: 4 | P55: 1 | Q55: 1 | R55: 0 | S55: 1 | T55: 1 | U55: 0 | V55: 1 | W55: 1 | X55: 0 | Y55: 1 | Z55: 1
A56: XXXXX47 | B56: Feb | C56: 2012-02-16 | D56: 15 | E56: 90 | F56: 2012-02-17 | G56: 12 | H56: 2012-02-17 | I56: 12 | J56: 1 | K56: 1 | L56: 0 | M56: 0 | N56: 21 | P56: 0 | Q56: 1 | R56: 0 | S56: 1 | T56: 1 | U56: 0 | V56: 1 | W56: 0 | X56: 1 | Y56: 0.5 | Z56: 0.8333333333
A57: XXXXX48 | B57: Feb | C57: 2012-02-17 | D57: 15 | E57: 108 | F57: 2012-02-18 | G57: 12 | H57: 2012-02-18 | I57: 12 | J57: 1 | K57: 0 | L57: 0 | M57: 0 | N57: 21 | P57: 1 | Q57: 1 | R57: 0 | S57: 1 | T57: 1 | U57: 0 | V57: 1 | W57: 0 | X57: 1 | Y57: 1 | Z57: 1
A58: XXXXX49 | B58: Feb | C58: 2012-02-18 | D58: 18 | E58: 63 | F58: 2012-02-19 | G58: 12 | H58: 2012-02-19 | I58: 16 | J58: 0 | K58: 0 | L58: 0 | M58: 0 | N58: 22 | O58: 4 | P58: 1 | Q58: 1 | R58: 0 | S58: 1 | T58: 1 | U58: 0 | V58: 1 | W58: 0 | X58: 1 | Y58: 1 | Z58: 1
A59: XXXXX50 | B59: Feb | C59: 2012-02-19 | D59: 8 | E59: 90 | F59: 2012-02-19 | G59: 16 | H59: 2012-02-19 | I59: 16 | J59: 1 | K59: 0 | L59: 1 | M59: 0 | N59: 8 | P59: 1 | Q59: 0 | R59: 0 | S59: 1 | T59: 1 | U59: 0 | V59: 1 | W59: 1 | X59: 0 | Y59: 0.5 | Z59: 0.8333333333
A60: XXXXX51 | B60: Feb | C60: 2012-02-20 | D60: 7 | E60: 90 | F60: 2012-02-20 | G60: 16 | H60: 2012-02-20 | I60: 16 | J60: 1 | K60: 0 | L60: 1 | M60: 0 | N60: 9 | P60: 1 | Q60: 0 | R60: 0 | S60: 1 | T60: 1 | U60: 0 | V60: 1 | W60: 0 | X60: 1 | Y60: 0.5 | Z60: 0.8333333333
A61: XXXXX52 | B61: Feb | C61: 2012-02-21 | D61: 7 | E61: 81 | F61: 2012-02-21 | G61: 16 | H61: 2012-02-21 | I61: 16 | J61: 1 | K61: 1 | L61: 1 | M61: 0 | N61: 9 | P61: 0 | Q61: 0 | R61: 0 | S61: 1 | T61: 1 | U61: 0 | V61: 1 | W61: 0 | X61: 1 | Y61: 0 | Z61: 0.6666666667
A62: XXXXX53 | B62: Feb | C62: 2012-02-22 | D62: 15 | E62: 126 | F62: 2012-02-23 | G62: 12 | H62: 2012-02-23 | I62: 12 | J62: 1 | K62: 0 | L62: 0 | M62: 0 | N62: 21 | P62: 1 | Q62: 1 | R62: 0 | S62: 1 | T62: 1 | U62: 1 | V62: 0 | W62: 0 | X62: 1 | Y62: 1 | Z62: 1
A63: XXXXX54 | B63: Feb | C63: 2012-02-23 | D63: 17 | E63: 90 | F63: 2012-02-24 | G63: 12 | H63: 2012-02-24 | I63: 12 | J63: 1 | K63: 0 | L63: 0 | M63: 0 | N63: 19 | P63: 1 | Q63: 1 | R63: 0 | S63: 1 | T63: 1 | U63: 0 | V63: 1 | W63: 0 | X63: 1 | Y63: 1 | Z63: 1
A64: XXXXX55 | B64: Feb | C64: 2012-02-24 | D64: 15 | E64: 63 | F64: 2012-02-25 | G64: 12 | H64: 2012-02-25 | I64: 12 | J64: 1 | K64: 0 | L64: 0 | M64: 0 | N64: 21 | P64: 1 | Q64: 1 | R64: 0 | S64: 1 | T64: 1 | U64: 0 | V64: 1 | W64: 0 | X64: 1 | Y64: 1 | Z64: 1
A65: XXXXX56 | B65: Feb | C65: 2012-02-25 | D65: 15 | E65: 36 | F65: 2012-02-26 | G65: 12 | H65: 2012-02-26 | I65: 16 | J65: 0 | K65: 0 | L65: 0 | M65: 0 | N65: 25 | O65: 4 | P65: 1 | Q65: 1 | R65: 0 | S65: 1 | T65: 1 | U65: 0 | V65: 1 | W65: 0 | X65: 1 | Y65: 1 | Z65: 1
A66: XXXXX57 | B66: Feb | C66: 2012-02-26 | D66: 9 | E66: 81 | F66: 2012-02-26 | G66: 16 | H66: 2012-02-26 | I66: 16 | J66: 1 | K66: 1 | L66: 0 | M66: 1 | N66: 7 | P66: 0 | Q66: 1 | R66: 0 | S66: 1 | T66: 0 | U66: 0 | V66: 1 | W66: 0 | X66: 1 | Y66: 0.5 | Z66: 0.5
A67: XXXXX58 | B67: Feb | C67: 2012-02-27 | D67: 8 | E67: 81 | F67: 2012-02-27 | G67: 16 | H67: 2012-02-27 | I67: 16 | J67: 1 | K67: 0 | L67: 0 | M67: 0 | N67: 8 | P67: 1 | Q67: 1 | R67: 0 | S67: 1 | T67: 1 | U67: 0 | V67: 1 | W67: 1 | X67: 0 | Y67: 1 | Z67: 1
A68: XXXXX59 | B68: Feb | C68: 2012-02-28 | D68: 7 | E68: 63 | F68: 2012-02-28 | G68: 16 | H68: 2012-02-28 | I68: 16 | J68: 1 | K68: 0 | L68: 0 | M68: 0 | N68: 9 | P68: 1 | Q68: 1 | R68: 0 | S68: 1 | T68: 1 | U68: 0 | V68: 1 | W68: 0 | X68: 1 | Y68: 1 | Z68: 1
A69: XXXXX60 | B69: Feb | C69: 2012-02-29 | D69: 17 | E69: 54 | F69: 2012-03-01 | G69: 12 | H69: 2012-03-01 | I69: 16 | J69: 0 | K69: 0 | L69: 0 | M69: 0 | N69: 23 | O69: 4 | P69: 1 | Q69: 1 | R69: 1 | S69: 0 | T69: 1 | U69: 0 | V69: 1 | W69: 0 | X69: 1 | Y69: 1 | Z69: 0.6666666667
A70: XXXXX61 | B70: Mar | C70: 2012-03-01 | D70: 18 | E70: 90 | F70: 2012-03-02 | G70: 12 | H70: 2012-03-02 | I70: 16 | J70: 0 | K70: 0 | L70: 0 | M70: 0 | N70: 22 | O70: 4 | P70: 1 | Q70: 1 | R70: 0 | S70: 1 | T70: 1 | U70: 0 | V70: 1 | W70: 0 | X70: 1 | Y70: 1 | Z70: 1
A71: XXXXX62 | B71: Mar | C71: 2012-03-02 | D71: 8 | E71: 45 | F71: 2012-03-02 | G71: 16 | H71: 2012-03-02 | I71: 16 | J71: 1 | K71: 0 | L71: 1 | M71: 0 | N71: 8 | P71: 1 | Q71: 0 | R71: 0 | S71: 1 | T71: 1 | U71: 0 | V71: 1 | W71: 1 | X71: 0 | Y71: 0.5 | Z71: 0.8333333333
A72: XXXXX63 | B72: Mar | C72: 2012-03-03 | D72: 15 | E72: 63 | F72: 2012-03-04 | G72: 12 | H72: 2012-03-04 | I72: 12 | J72: 1 | K72: 0 | L72: 0 | M72: 0 | N72: 21 | P72: 1 | Q72: 1 | R72: 0 | S72: 1 | T72: 1 | U72: 0 | V72: 1 | W72: 0 | X72: 1 | Y72: 1 | Z72: 1
A73: XXXXX64 | B73: Mar | C73: 2012-03-04 | D73: 16 | E73: 81 | F73: 2012-03-05 | G73: 12 | H73: 2012-03-05 | I73: 16 | J73: 0 | K73: 1 | L73: 0 | M73: 0 | N73: 24 | O73: 4 | P73: 0 | Q73: 1 | R73: 0 | S73: 1 | T73: 1 | U73: 0 | V73: 1 | W73: 0 | X73: 1 | Y73: 0.5 | Z73: 0.8333333333
A74: XXXXX65 | B74: Mar | C74: 2012-03-05 | D74: 9 | E74: 54 | F74: =IF(D74<=12,C74,C74+1) -> 2012-03-05 | G74: =IF(F74-C74=0,16,12) -> 16 | H74: =IF(J74=1,F74,IF(F74=C74,F74+1,F74)) -> 2012-03-06 | I74: =IF(J74=1,G74,IF(F74=H74,16,12)) -> 12 | J74: 0 | K74: 0 | L74: 1 | M74: 0 | N74: =IF(H74=C74,I74-D74,(H74-C74)*24+IF(D74-I74=0,0,I74-D74)) -> 27 | O74: =IF(J74=1,"",IF(F74=H74,I74-G74,20)) -> 20 | P74: =IF(K74=1,0,1) -> 1 | Q74: =IF(L74=1,0,1) -> 0 | R74: 1 | S74: 0 | T74: =IF(M74=1,0,1) -> 1 | U74: 0 | V74: 1 | W74: 0 | X74: 1 | Y74: =AVERAGE(P74,Q74) -> 0.5 | Z74: 0.5
A75: XXXXX66 | B75: Mar | C75: 2012-03-06 | D75: 8 | E75: 81 | F75: 2012-03-06 | G75: 16 | H75: 2012-03-06 | I75: 16 | J75: =IF(RAND()<=0.8,1,0) -> 1 | K75: =IF(RAND()<=0.2,1,0) -> 0 | L75: =IF(RAND()<=0.3,1,0) -> 0 | M75: =IF(RAND()<=0.95,0,1) -> 0 | N75: 8 | P75: 1 | Q75: 1 | R75: 0 | S75: =IF(R75=1,0,1) -> 1 | T75: 1 | U75: =IF(RAND()<=0.95,0,1) -> 0 | V75: =IF(U75=1,0,1) -> 1 | W75: =IF(RAND()<=0.9,0,1) -> 0 | X75: =IF(W75=1,0,1) -> 1 | Y75: 1 | Z75: =AVERAGE(T75,S75,Y75) -> 1
A76: XXXXX67 | B76: Mar | C76: 2012-03-07 | D76: 9 | E76: 63 | F76: 2012-03-07 | G76: 16 | H76: 2012-03-07 | I76: 16 | J76: 1 | K76: 0 | L76: 0 | M76: 0 | N76: 7 | P76: 1 | Q76: 1 | R76: 0 | S76: 1 | T76: 1 | U76: 1 | V76: 0 | W76: 1 | X76: 0 | Y76: 1 | Z76: 1
A77: XXXXX68 | B77: Mar | C77: 2012-03-08 | D77: 18 | E77: 108 | F77: 2012-03-09 | G77: 12 | H77: 2012-03-09 | I77: 12 | J77: 1 | K77: 0 | L77: 0 | M77: 0 | N77: 18 | P77: 1 | Q77: 1 | R77: 0 | S77: 1 | T77: 1 | U77: 0 | V77: 1 | W77: 0 | X77: 1 | Y77: 1 | Z77: 1
A78: XXXXX69 | B78: Mar | C78: 2012-03-09 | D78: 11 | E78: 36 | F78: 2012-03-09 | G78: 16 | H78: 2012-03-09 | I78: 16 | J78: 1 | K78: 0 | L78: 0 | M78: 0 | N78: 5 | P78: 1 | Q78: 1 | R78: 0 | S78: 1 | T78: 1 | U78: 1 | V78: 0 | W78: 0 | X78: 1 | Y78: 1 | Z78: 1
A79: XXXXX70 | B79: Mar | C79: 2012-03-10 | D79: 14 | E79: 108 | F79: 2012-03-11 | G79: 12 | H79: 2012-03-11 | I79: 12 | J79: 1 | K79: 0 | L79: 0 | M79: 0 | N79: 22 | P79: 1 | Q79: 1 | R79: 0 | S79: 1 | T79: 1 | U79: 0 | V79: 1 | W79: 0 | X79: 1 | Y79: 1 | Z79: 1
A80: XXXXX71 | B80: Mar | C80: 2012-03-11 | D80: 8 | E80: 108 | F80: 2012-03-11 | G80: 16 | H80: 2012-03-12 | I80: 12 | J80: 0 | K80: 0 | L80: 0 | M80: 0 | N80: 28 | O80: 20 | P80: 1 | Q80: 1 | R80: 0 | S80: 1 | T80: 1 | U80: 0 | V80: 1 | W80: 0 | X80: 1 | Y80: 1 | Z80: 1
A81: XXXXX72 | B81: Mar | C81: 2012-03-12 | D81: 7 | E81: 90 | F81: 2012-03-12 | G81: 16 | H81: 2012-03-12 | I81: 16 | J81: 1 | K81: 0 | L81: 1 | M81: 0 | N81: 9 | P81: 1 | Q81: 0 | R81: 0 | S81: 1 | T81: 1 | U81: 0 | V81: 1 | W81: 1 | X81: 0 | Y81: 0.5 | Z81: 0.8333333333
A82: XXXXX73 | B82: Mar | C82: 2012-03-13 | D82: 17 | E82: 63 | F82: 2012-03-14 | G82: 12 | H82: 2012-03-14 | I82: 12 | J82: 1 | K82: 0 | L82: 0 | M82: 0 | N82: 19 | P82: 1 | Q82: 1 | R82: 0 | S82: 1 | T82: 1 | U82: 0 | V82: 1 | W82: 0 | X82: 1 | Y82: 1 | Z82: 1
A83: XXXXX74 | B83: Mar | C83: 2012-03-14 | D83: 8 | E83: 81 | F83: 2012-03-14 | G83: 16 | H83: 2012-03-14 | I83: 16 | J83: 1 | K83: 0 | L83: 0 | M83: 0 | N83: 8 | P83: 1 | Q83: 1 | R83: 1 | S83: 0 | T83: 1 | U83: 0 | V83: 1 | W83: 1 | X83: 0 | Y83: 1 | Z83: 0.6666666667
A84: XXXXX75 | B84: Mar | C84: 2012-03-15 | D84: 15 | E84: 81 | F84: 2012-03-16 | G84: 12 | H84: 2012-03-16 | I84: 12 | J84: 1 | K84: 0 | L84: 0 | M84: 0 | N84: 21 | P84: 1 | Q84: 1 | R84: 0 | S84: 1 | T84: 1 | U84: 0 | V84: 1 | W84: 0 | X84: 1 | Y84: 1 | Z84: 1
A85: XXXXX76 | B85: Mar | C85: 2012-03-16 | D85: 13 | E85: 108 | F85: 2012-03-17 | G85: 12 | H85: 2012-03-17 | I85: 12 | J85: 1 | K85: 0 | L85: 0 | M85: 0 | N85: 23 | P85: 1 | Q85: 1 | R85: 0 | S85: 1 | T85: 1 | U85: 0 | V85: 1 | W85: 0 | X85: 1 | Y85: 1 | Z85: 1
A86: XXXXX77 | B86: Mar | C86: 2012-03-17 | D86: 12 | E86: 63 | F86: 2012-03-17 | G86: 16 | H86: 2012-03-17 | I86: 16 | J86: 1 | K86: 0 | L86: 1 | M86: 0 | N86: 4 | P86: 1 | Q86: 0 | R86: 0 | S86: 1 | T86: 1 | U86: 0 | V86: 1 | W86: 0 | X86: 1 | Y86: 0.5 | Z86: 0.8333333333
A87: XXXXX78 | B87: Mar | C87: 2012-03-18 | D87: 15 | E87: 90 | F87: 2012-03-19 | G87: 12 | H87: 2012-03-19 | I87: 12 | J87: 1 | K87: 0 | L87: 0 | M87: 1 | N87: 21 | P87: 1 | Q87: 1 | R87: 0 | S87: 1 | T87: 0 | U87: 0 | V87: 1 | W87: 1 | X87: 0 | Y87: 1 | Z87: 0.6666666667
A88: XXXXX79 | B88: Mar | C88: 2012-03-19 | D88: 13 | E88: 81 | F88: 2012-03-20 | G88: 12 | H88: 2012-03-20 | I88: 12 | J88: 1 | K88: 0 | L88: 1 | M88: 0 | N88: 23 | P88: 1 | Q88: 0 | R88: 0 | S88: 1 | T88: 1 | U88: 1 | V88: 0 | W88: 1 | X88: 0 | Y88: 0.5 | Z88: 0.8333333333
A89: XXXXX80 | B89: Mar | C89: 2012-03-20 | D89: 16 | E89: 54 | F89: 2012-03-21 | G89: 12 | H89: 2012-03-21 | I89: 16 | J89: 0 | K89: 0 | L89: 0 | M89: 0 | N89: 24 | O89: 4 | P89: 1 | Q89: 1 | R89: 0 | S89: 1 | T89: 1 | U89: 0 | V89: 1 | W89: 0 | X89: 1 | Y89: 1 | Z89: 1
A90: XXXXX81 | B90: Mar | C90: 2012-03-21 | D90: 19 | E90: 81 | F90: 2012-03-22 | G90: 12 | H90: 2012-03-22 | I90: 12 | J90: 1 | K90: 1 | L90: 0 | M90: 0 | N90: 17 | P90: 0 | Q90: 1 | R90: 0 | S90: 1 | T90: 1 | U90: 0 | V90: 1 | W90: 0 | X90: 1 | Y90: 0.5 | Z90: 0.8333333333
A91: XXXXX82 | B91: Mar | C91: 2012-03-22 | D91: 12 | E91: 126 | F91: 2012-03-22 | G91: 16 | H91: 2012-03-23 | I91: 12 | J91: 0 | K91: 0 | L91: 0 | M91: 0 | N91: 24 | O91: 20 | P91: 1 | Q91: 1 | R91: 0 | S91: 1 | T91: 1 | U91: 1 | V91: 0 | W91: 0 | X91: 1 | Y91: 1 | Z91: 1
A92: XXXXX83 | B92: Mar | C92: 2012-03-23 | D92: 8 | E92: 54 | F92: 2012-03-23 | G92: 16 | H92: 2012-03-23 | I92: 16 | J92: 1 | K92: 0 | L92: 0 | M92: 1 | N92: 8 | P92: 1 | Q92: 1 | R92: 0 | S92: 1 | T92: 0 | U92: 0 | V92: 1 | W92: 1 | X92: 0 | Y92: 1 | Z92: 0.6666666667
A93: XXXXX84 | B93: Mar | C93: 2012-03-24 | D93: 14 | E93: 63 | F93: 2012-03-25 | G93: 12 | H93: 2012-03-25 | I93: 12 | J93: 1 | K93: 1 | L93: 0 | M93: 0 | N93: 22 | P93: 0 | Q93: 1 | R93: 0 | S93: 1 | T93: 1 | U93: 0 | V93: 1 | W93: 0 | X93: 1 | Y93: 0.5 | Z93: 0.8333333333
A94: XXXXX85 | B94: Mar | C94: 2012-03-25 | D94: 10 | E94: 81 | F94: 2012-03-25 | G94: 16 | H94: 2012-03-25 | I94: 16 | J94: 1 | K94: 0 | L94: 0 | M94: 0 | N94: 6 | P94: 1 | Q94: 1 | R94: 0 | S94: 1 | T94: 1 | U94: 0 | V94: 1 | W94: 0 | X94: 1 | Y94: 1 | Z94: 1
A95: XXXXX86 | B95: Mar | C95: 2012-03-26 | D95: 9 | E95: 108 | F95: 2012-03-26 | G95: 16 | H95: 2012-03-26 | I95: 16 | J95: 1 | K95: 0 | L95: 0 | M95: 0 | N95: 7 | P95: 1 | Q95: 1 | R95: 0 | S95: 1 | T95: 1 | U95: 0 | V95: 1 | W95: 0 | X95: 1 | Y95: 1 | Z95: 1
A96: XXXXX87 | B96: Mar | C96: 2012-03-27 | D96: 14 | E96: 45 | F96: 2012-03-28 | G96: 12 | H96: 2012-03-28 | I96: 12 | J96: 1 | K96: 0 | L96: 0 | M96: 0 | N96: 22 | P96: 1 | Q96: 1 | R96: 0 | S96: 1 | T96: 1 | U96: 0 | V96: 1 | W96: 0 | X96: 1 | Y96: 1 | Z96: 1
A97: XXXXX88 | B97: Mar | C97: 2012-03-28 | D97: 17 | E97: 54 | F97: 2012-03-29 | G97: 12 | H97: 2012-03-29 | I97: 12 | J97: 1 | K97: 0 | L97: 0 | M97: 0 | N97: 19 | P97: 1 | Q97: 1 | R97: 1 | S97: 0 | T97: 1 | U97: 0 | V97: 1 | W97: 0 | X97: 1 | Y97: 1 | Z97: 0.6666666667
A98: XXXXX89 | B98: Mar | C98: 2012-03-29 | D98: 12 | E98: 126 | F98: 2012-03-29 | G98: 16 | H98: 2012-03-29 | I98: 16 | J98: 1 | K98: 0 | L98: 0 | M98: 0 | N98: 4 | P98: 1 | Q98: 1 | R98: 0 | S98: 1 | T98: 1 | U98: 0 | V98: 1 | W98: 0 | X98: 1 | Y98: 1 | Z98: 1
A99: XXXXX90 | B99: Mar | C99: 2012-03-30 | D99: 7 | E99: 81 | F99: 2012-03-30 | G99: 16 | H99: 2012-03-30 | I99: 16 | J99: 1 | K99: 1 | L99: 0 | M99: 0 | N99: 9 | P99: 0 | Q99: 1 | R99: 0 | S99: 1 | T99: 1 | U99: 0 | V99: 1 | W99: 0 | X99: 1 | Y99: 0.5 | Z99: 0.8333333333
A100: XXXXX91 | B100: Mar | C100: 2012-03-31 | D100: 18 | E100: 36 | F100: 2012-04-01 | G100: 12 | H100: 2012-04-01 | I100: 12 | J100: 1 | K100: 0 | L100: 0 | M100: 0 | N100: 18 | P100: 1 | Q100: 1 | R100: 0 | S100: 1 | T100: 1 | U100: 0 | V100: 1 | W100: 0 | X100: 1 | Y100: 1 | Z100: 1
A101: XXXXX92 | B101: Apr | C101: 2012-04-01 | D101: 15 | E101: 81 | F101: 2012-04-02 | G101: 12 | H101: 2012-04-02 | I101: 12 | J101: 1 | K101: 0 | L101: 1 | M101: 0 | N101: 21 | P101: 1 | Q101: 0 | R101: 0 | S101: 1 | T101: 1 | U101: 0 | V101: 1 | W101: 0 | X101: 1 | Y101: 0.5 | Z101: 0.8333333333
A102: XXXXX93 | B102: Apr | C102: 2012-04-02 | D102: 14 | E102: 108 | F102: 2012-04-03 | G102: 12 | H102: 2012-04-03 | I102: 12 | J102: 1 | K102: 0 | L102: 0 | M102: 0 | N102: 22 | P102: 1 | Q102: 1 | R102: 0 | S102: 1 | T102: 1 | U102: 0 | V102: 1 | W102: 0 | X102: 1 | Y102: 1 | Z102: 1
A103: XXXXX94 | B103: Apr | C103: 2012-04-03 | D103: 8 | E103: 81 | F103: 2012-04-03 | G103: 16 | H103: 2012-04-03 | I103: 16 | J103: 1 | K103: 0 | L103: 0 | M103: 0 | N103: 8 | P103: 1 | Q103: 1 | R103: 0 | S103: 1 | T103: 1 | U103: 0 | V103: 1 | W103: 0 | X103: 1 | Y103: 1 | Z103: 1
A104: XXXXX95 | B104: Apr | C104: 2012-04-04 | D104: 10 | E104: 90 | F104: 2012-04-04 | G104: 16 | H104: 2012-04-04 | I104: 16 | J104: 1 | K104: 0 | L104: 1 | M104: 0 | N104: 6 | P104: 1 | Q104: 0 | R104: 0 | S104: 1 | T104: 1 | U104: 0 | V104: 1 | W104: 0 | X104: 1 | Y104: 0.5 | Z104: 0.8333333333
A105: XXXXX96 | B105: Apr | C105: 2012-04-05 | D105: 9 | E105: 108 | F105: 2012-04-05 | G105: 16 | H105: 2012-04-05 | I105: 16 | J105: 1 | K105: 0 | L105: 0 | M105: 0 | N105: 7 | P105: 1 | Q105: 1 | R105: 0 | S105: 1 | T105: 1 | U105: 0 | V105: 1 | W105: 1 | X105: 0 | Y105: 1 | Z105: 1
A106: XXXXX97 | B106: Apr | C106: 2012-04-06 | D106: 13 | E106: 108 | F106: =IF(D106<=12,C106,C106+1) -> 2012-04-07 | G106: =IF(F106-C106=0,16,12) -> 12 | H106: =IF(J106=1,F106,IF(F106=C106,F106+1,F106)) -> 2012-04-07 | I106: =IF(J106=1,G106,IF(F106=H106,16,12)) -> 16 | J106: 0 | K106: 0 | L106: 1 | M106: 0 | N106: =IF(H106=C106,I106-D106,(H106-C106)*24+IF(D106-I106=0,0,I106-D106)) -> 27 | O106: =IF(J106=1,"",IF(F106=H106,I106-G106,20)) -> 4 | P106: =IF(K106=1,0,1) -> 1 | Q106: =IF(L106=1,0,1) -> 0 | R106: 0 | S106: 1 | T106: =IF(M106=1,0,1) -> 1 | U106: 0 | V106: 1 | W106: 0 | X106: 1 | Y106: =AVERAGE(P106,Q106) -> 0.5 | Z106: 0.8333333333
A107: XXXXX98 | B107: Apr | C107: 2012-04-07 | D107: 12 | E107: 108 | F107: 2012-04-07 | G107: 16 | H107: 2012-04-08 | I107: 12 | J107: 0 | K107: 0 | L107: 0 | M107: 1 | N107: 24 | O107: 20 | P107: 1 | Q107: 1 | R107: 0 | S107: 1 | T107: 0 | U107: 0 | V107: 1 | W107: 0 | X107: 1 | Y107: 1 | Z107: 0.6666666667
A108: XXXXX99 | B108: Apr | C108: 2012-04-08 | D108: 11 | E108: 54 | F108: 2012-04-08 | G108: 16 | H108: 2012-04-08 | I108: 16 | J108: 1 | K108: 1 | L108: 0 | M108: 0 | N108: 5 | P108: 0 | Q108: 1 | R108: 0 | S108: 1 | T108: 1 | U108: 0 | V108: 1 | W108: 1 | X108: 0 | Y108: 0.5 | Z108: 0.8333333333
A109: XXXXX100 | B109: Apr | C109: 2012-04-09 | D109: 18 | E109: 108 | F109: 2012-04-10 | G109: 12 | H109: 2012-04-10 | I109: 12 | J109: 1 | K109: 0 | L109: 0 | M109: 0 | N109: 18 | P109: 1 | Q109: 1 | R109: 0 | S109: 1 | T109: 1 | U109: 0 | V109: 1 | W109: 0 | X109: 1 | Y109: 1 | Z109: 1
A110: XXXXX101 | B110: Apr | C110: 2012-04-10 | D110: 14 | E110: 108 | F110: 2012-04-11 | G110: 12 | H110: 2012-04-11 | I110: 12 | J110: 1 | K110: 0 | L110: 0 | M110: 1 | N110: 22 | P110: 1 | Q110: 1 | R110: 0 | S110: 1 | T110: 0 | U110: 0 | V110: 1 | W110: 1 | X110: 0 | Y110: 1 | Z110: 0.6666666667
A111: XXXXX102 | B111: Apr | C111: 2012-04-11 | D111: 17 | E111: 108 | F111: 2012-04-12 | G111: 12 | H111: 2012-04-12 | I111: 16 | J111: 0 | K111: 0 | L111: 0 | M111: 0 | N111: 23 | O111: 4 | P111: 1 | Q111: 1 | R111: 0 | S111: 1 | T111: 1 | U111: 0 | V111: 1 | W111: 0 | X111: 1 | Y111: 1 | Z111: 1
A112: XXXXX103 | B112: Apr | C112: 2012-04-12 | D112: 16 | E112: 36 | F112: 2012-04-13 | G112: 12 | H112: 2012-04-13 | I112: 12 | J112: 1 | K112: 0 | L112: 1 | M112: 0 | N112: 20 | P112: 1 | Q112: 0 | R112: 0 | S112: 1 | T112: 1 | U112: 0 | V112: 1 | W112: 0 | X112: 1 | Y112: 0.5 | Z112: 0.8333333333
A113: XXXXX104 | B113: Apr | C113: 2012-04-13 | D113: 15 | E113: 63 | F113: 2012-04-14 | G113: 12 | H113: 2012-04-14 | I113: 12 | J113: 1 | K113: 0 | L113: 1 | M113: 0 | N113: 21 | P113: 1 | Q113: 0 | R113: 0 | S113: 1 | T113: 1 | U113: 0 | V113: 1 | W113: 1 | X113: 0 | Y113: 0.5 | Z113: 0.8333333333
A114: XXXXX105 | B114: Apr | C114: 2012-04-14 | D114: 15 | E114: 108 | F114: 2012-04-15 | G114: 12 | H114: 2012-04-15 | I114: 12 | J114: 1 | K114: 1 | L114: 0 | M114: 1 | N114: 21 | P114: 0 | Q114: 1 | R114: 0 | S114: 1 | T114: 0 | U114: 0 | V114: 1 | W114: 0 | X114: 1 | Y114: 0.5 | Z114: 0.5
A115: XXXXX106 | B115: Apr | C115: 2012-04-15 | D115: 15 | E115: 90 | F115: 2012-04-16 | G115: 12 | H115: 2012-04-16 | I115: 16 | J115: 0 | K115: 0 | L115: 1 | M115: 0 | N115: 25 | O115: 4 | P115: 1 | Q115: 0 | R115: 0 | S115: 1 | T115: 1 | U115: 0 | V115: 1 | W115: 0 | X115: 1 | Y115: 0.5 | Z115: 0.8333333333
A116: XXXXX107 | B116: Apr | C116: 2012-04-16 | D116: 16 | E116: 90 | F116: 2012-04-17 | G116: 12 | H116: 2012-04-17 | I116: 12 | J116: 1 | K116: 0 | L116: 0 | M116: 0 | N116: 20 | P116: 1 | Q116: 1 | R116: 0 | S116: 1 | T116: 1 | U116: 0 | V116: 1 | W116: 0 | X116: 1 | Y116: 1 | Z116: 1
A117: XXXXX108 | B117: Apr | C117: 2012-04-17 | D117: 8 | E117: 36 | F117: 2012-04-17 | G117: 16 | H117: 2012-04-17 | I117: 16 | J117: 1 | K117: 0 | L117: 0 | M117: 1 | N117: 8 | P117: 1 | Q117: 1 | R117: 0 | S117: 1 | T117: 0 | U117: 0 | V117: 1 | W117: 0 | X117: 1 | Y117: 1 | Z117: 0.6666666667
A118: XXXXX109 | B118: Apr | C118: 2012-04-18 | D118: 19 | E118: 45 | F118: 2012-04-19 | G118: 12 | H118: 2012-04-19 | I118: 12 | J118: 1 | K118: 0 | L118: 0 | M118: 0 | N118: 17 | P118: 1 | Q118: 1 | R118: 0 | S118: 1 | T118: 1 | U118: 0 | V118: 1 | W118: 1 | X118: 0 | Y118: 1 | Z118: 1
A119: XXXXX110 | B119: Apr | C119: 2012-04-19 | D119: 15 | E119: 63 | F119: 2012-04-20 | G119: 12 | H119: 2012-04-20 | I119: 12 | J119: 1 | K119: 0 | L119: 0 | M119: 0 | N119: 21 | P119: 1 | Q119: 1 | R119: 0 | S119: 1 | T119: 1 | U119: 0 | V119: 1 | W119: 0 | X119: 1 | Y119: 1 | Z119: 1
A120: XXXXX111 | B120: Apr | C120: 2012-04-20 | D120: 11 | E120: 108 | F120: 2012-04-20 | G120: 16 | H120: 2012-04-20 | I120: 16 | J120: 1 | K120: 0 | L120: 0 | M120: 0 | N120: 5 | P120: 1 | Q120: 1 | R120: 0 | S120: 1 | T120: 1 | U120: 0 | V120: 1 | W120: 0 | X120: 1 | Y120: 1 | Z120: 1
A121: XXXXX112 | B121: Apr | C121: 2012-04-21 | D121: 19 | E121: 126 | F121: 2012-04-22 | G121: 12 | H121: 2012-04-22 | I121: 16 | J121: 0 | K121: 0 | L121: 1 | M121: 0 | N121: 21 | O121: 4 | P121: 1 | Q121: 0 | R121: 0 | S121: 1 | T121: 1 | U121: 0 | V121: 1 | W121: 1 | X121: 0 | Y121: 0.5 | Z121: 0.8333333333
A122: XXXXX113 | B122: Apr | C122: 2012-04-22 | D122: 7 | E122: 36 | F122: 2012-04-22 | G122: 16 | H122: 2012-04-22 | I122: 16 | J122: 1 | K122: 0 | L122: 0 | M122: 0 | N122: 9 | P122: 1 | Q122: 1 | R122: 0 | S122: 1 | T122: 1 | U122: 0 | V122: 1 | W122: 0 | X122: 1 | Y122: 1 | Z122: 1
A123: XXXXX114 | B123: Apr | C123: 2012-04-23 | D123: 7 | E123: 63 | F123: 2012-04-23 | G123: 16 | H123: 2012-04-23 | I123: 16 | J123: 1 | K123: 0 | L123: 0 | M123: 0 | N123: 9 | P123: 1 | Q123: 1 | R123: 0 | S123: 1 | T123: 1 | U123: 0 | V123: 1 | W123: 0 | X123: 1 | Y123: 1 | Z123: 1
A124: XXXXX115 | B124: Apr | C124: 2012-04-24 | D124: 13 | E124: 81 | F124: 2012-04-25 | G124: 12 | H124: 2012-04-25 | I124: 12 | J124: 1 | K124: 0 | L124: 0 | M124: 0 | N124: 23 | P124: 1 | Q124: 1 | R124: 0 | S124: 1 | T124: 1 | U124: 0 | V124: 1 | W124: 0 | X124: 1 | Y124: 1 | Z124: 1
A125: XXXXX116 | B125: Apr | C125: 2012-04-25 | D125: 16 | E125: 108 | F125: 2012-04-26 | G125: 12 | H125: 2012-04-26 | I125: 12 | J125: 1 | K125: 1 | L125: 0 | M125: 0 | N125: 20 | P125: 0 | Q125: 1 | R125: 0 | S125: 1 | T125: 1 | U125: 0 | V125: 1 | W125: 1 | X125: 0 | Y125: 0.5 | Z125: 0.8333333333
A126: XXXXX117 | B126: Apr | C126: 2012-04-26 | D126: 11 | E126: 90 | F126: 2012-04-26 | G126: 16 | H126: 2012-04-26 | I126: 16 | J126: 1 | K126: 0 | L126: 0 | M126: 0 | N126: 5 | P126: 1 | Q126: 1 | R126: 0 | S126: 1 | T126: 1 | U126: 0 | V126: 1 | W126: 0 | X126: 1 | Y126: 1 | Z126: 1
A127: XXXXX118 | B127: Apr | C127: 2012-04-27 | D127: 15 | E127: 63 | F127: 2012-04-28 | G127: 12 | H127: 2012-04-28 | I127: 12 | J127: 1 | K127: 0 | L127: 0 | M127: 0 | N127: 21 | P127: 1 | Q127: 1 | R127: 0 | S127: 1 | T127: 1 | U127: 0 | V127: 1 | W127: 1 | X127: 0 | Y127: 1 | Z127: 1
A128: XXXXX119 | B128: Apr | C128: 2012-04-28 | D128: 15 | E128: 63 | F128: 2012-04-29 | G128: 12 | H128: 2012-04-29 | I128: 12 | J128: 1 | K128: 0 | L128: 0 | M128: 0 | N128: 21 | P128: 1 | Q128: 1 | R128: 0 | S128: 1 | T128: 1 | U128: 0 | V128: 1 | W128: 0 | X128: 1 | Y128: 1 | Z128: 1
A129: XXXXX120 | B129: Apr | C129: 2012-04-29 | D129: 14 | E129: 90 | F129: 2012-04-30 | G129: 12 | H129: 2012-04-30 | I129: 12 | J129: 1 | K129: 0 | L129: 0 | M129: 0 | N129: 22 | P129: 1 | Q129: 1 | R129: 0 | S129: 1 | T129: 1 | U129: 0 | V129: 1 | W129: 0 | X129: 1 | Y129: 1 | Z129: 1
A130: XXXXX121 | B130: Apr | C130: 2012-04-30 | D130: 16 | E130: 54 | F130: 2012-05-01 | G130: 12 | H130: 2012-05-01 | I130: 12 | J130: 1 | K130: 1 | L130: 0 | M130: 0 | N130: 20 | P130: 0 | Q130: 1 | R130: 0 | S130: 1 | T130: 1 | U130: 0 | V130: 1 | W130: 1 | X130: 0 | Y130: 0.5 | Z130: 0.8333333333
A133: Delays
A134: 1 hr | C134: =COUNTIF($O$10:$O$131,"=1") -> 0 | D134: =C134/(COUNTA($O$10:$O$131) + COUNTBLANK($O$10:$O$131)) -> 0
A135: 2 hrs | C135: =COUNTIF($O$10:$O$131,"=2") -> 0 | D135: =C135/(COUNTA($O$10:$O$131) + COUNTBLANK($O$10:$O$131)) -> 0
A136: 3 hrs | C136: =COUNTIF($O$10:$O$131,"=3") -> 0 | D136: =C136/(COUNTA($O$10:$O$131) + COUNTBLANK($O$10:$O$131)) -> 0
A137: 12 hrs | C137: =COUNTIF($O$10:$O$131,"=12") -> 0 | D137: =C137/(COUNTA($O$10:$O$131) + COUNTBLANK($O$10:$O$131)) -> 0
C138: =SUM(C134:C137) -> 0
C139: =COUNT($O$10:$O$131) -> 24

Sheet TR_summary
A2: Data Ranges for the speedometers
A3: On Time Deliveries | C3: Shipment completeness | E3: Invoice Accuracy
A4: Ranges | C4: Ranges | E4: Ranges
A5: Start | B5: 0 | C5: Start | D5: 0 | E5: Start | F5: 0
A6: Red | B6: =Parameters!$S$23 -> 70 | C6: Red | D6: =Parameters!$S$30 -> 70 | E6: Red | F6: =Parameters!$S$32 -> 70
A7: Yellow | B7: =Parameters!$R$23-B6 -> 10 | C7: Yellow | D7: =Parameters!R30-Parameters!S30 -> 10 | E7: Yellow | F7: =Parameters!R32-Parameters!S32 -> 10
A8: Green | B8: =Parameters!$Q$23-Parameters!$R$23 -> 20 | C8: Green | D8: =Parameters!$Q$30-Parameters!$R$30 -> 20 | E8: Green | F8: =Parameters!Q32-Parameters!R32 -> 20
A9: End | B9: 100 | C9: End | D9: 100 | E9: End | F9: 100
A10: Current Value | B10: =E32*100 -> 68.59504132 | C10: Current Value | D10: =J32*100 -> 90.90909091 | E10: Current Value | F10: =K32*100 -> 88.42975207
A11: Pointer | B11: 1.5 | C11: Pointer | D11: 1.5 | E11: Pointer | F11: 1.5
A12: End | B12: =200-(B10+B11) -> 129.9049587 | C12: End | D12: =200-(D10+D11) -> 107.5909091 | E12: End | F12: =200-(F10+F11) -> 110.0702479
A17: Data for the pie charts
A18: Confirmation delay [days] | B18: Count | C18: Average Delay [days] | D18: Count
A19: 1 | B19: 53 | C19: 1 | D19: 0
A20: 2 | B20: 32 | C20: 2 | D20: 16
A21: 3 | B21: 36 | C21: 3 | D21: 14
A22: 4 | B22: 0 | C22: 4 | D22: 0
A25: Data for bar/line charts
A27: Row Labels | B27: Average of Shipments arriving to the correct location | C27: On time pickup | D27: Average of Avg Lead Time [days] | E27: Average of On time Deliveries | F27: Average of Confirmation Delay [days] | G27: a KPI | H27: a KPI | I27: a KPI | J27: a KPI | K27: Average of Invoice Accuracy | L27: a KPI | M27: a KPI | N27: a KPI | O27: a KPI
A28: jan | B28: 0.9032258065 | C28: 0.9677419355 | D28: 3.35483871 | E28: 0.7419354839 | F28: 1.745967742 | G28: 56 | H28: 0.9784946237 | I28: 0.8924731183 | J28: 0.935483871 | K28: 0.8709677419 | L28: 503.2258065 | M28: 0.09677419355 | N28: 0.9032258065 | O28: 170533.4469
A29: feb | B29: 0.8965517241 | C29: 0.9310344828 | D29: 3.287356322 | E29: 0.7586206897 | F29: 1.668103448 | G29: 72 | H29: 0.9770114943 | I29: 0.9367816092 | J29: 0.8275862069 | K29: 0.8275862069 | L29: 511.0344828 | M29: 0.1379310345 | N29: 0.8620689655 | O29: 155724.3033
A30: mrt | B30: 0.9677419355 | C30: 0.8387096774 | D30: 3.962365591 | E30: 0.6129032258 | F30: 1.872311828 | G30: 62 | H30: 1 | I30: 0.935483871 | J30: 0.9677419355 | K30: 0.9032258065 | L30: 516.7741935 | M30: 0.03225806452 | N30: 0.9677419355 | O30: 163100.4994
A31: apr | B31: 0.8333333333 | C31: 0.9 | D31: 3.594444444 | E31: 0.6333333333 | F31: 1.772222222 | G31: 65.14285714 | H31: 0.9888888889 | I31: 0.9777777778 | J31: 0.9 | K31: 0.9333333333 | L31: 550 | M31: 0.06666666667 | N31: 0.9333333333 | O31: 162427.0896
A32: Grand Total | B32: 0.9008264463 | C32: 0.9090909091 | D32: 3.553719008 | E32: 0.6859504132 | F32: 1.766184573 | G32: 62.89655172 | H32: 0.9862258953 | I32: 0.935261708 | J32: 0.9090909091 | K32: 0.8842975207 | L32: 520.1652893 | M32: 0.0826446281 | N32: 0.9173553719 | O32: 651785.3393

Sheet WH_summary
A1: Data Ranges for the speedometers
A3: On Time Dispatching | C3: Order Completeness
A4: Start | B4: 0 | C4: 0
A5: Red | B5: =Parameters!S36 -> 70 | C5: =Parameters!S42 -> 70
A6: Yellow | B6: =Parameters!$R$36-Parameters!$S$36 -> 10 | C6: =Parameters!R42-Parameters!S42 -> 10
A7: Green | B7: =Parameters!Q36-Parameters!R36 -> 20 | C7: =Parameters!Q42-Parameters!R42 -> 20
A8: End | B8: 100 | C8: 100
A9: Current Value | B9: =B29*100 -> 80.16528926 | C9: =G29*100 -> 78.51239669
A10: Pointer | B10: 1.5 | C10: 1.5
A11: End | B11: =200-(B9+B10) -> 118.3347107 | C11: 119.9876033
A15: Data for the pie charts
A16: Dispatching Delay [hrs]
A17: 4 | B17: =COUNTIF(Data_WH_outb!$O$10:$O$131,"="&A17) -> 17
A18: 20 | B18: =COUNTIF(Data_WH_outb!$O$10:$O$131,"="&A18) -> 7
A21: Data for bar/line charts
A24: Row Labels | B24: Average of On Time | C24: Average of Dispatching Delay | D24: Average of Transferred orders with proper packing | E24: Average of Picking accuracy | F24: Average of Volume/Weight Accuracy | G24: Average of WH transfer completeness
A25: Jan | B25: 0.8387096774 | C25: 7.2 | D25: 0.7096774194 | E25: 0.9677419355 | F25: 0.8064516129 | G25: 0.7580645161
A26: Feb | B26: 0.7931034483 | C26: 14.66666667 | D26: 0.8620689655 | E26: 0.9655172414 | F26: 0.724137931 | G26: 0.7931034483
A27: Apr | B27: 0.7666666667 | C27: 4 | D27: 0.8 | E27: 0.9666666667 | F27: 0.9 | G27: 0.85
A28: Mar | B28: 0.8064516129 | C28: 12 | D28: 0.7419354839 | E28: 1 | F28: 0.7419354839 | G28: 0.7419354839
A29: Grand Total | B29: 0.8016528926 | C29: 9.333333333 | D29: 0.7768595041 | E29: 0.9752066116 | F29: 0.7933884298 | G29: 0.7851239669

Sheet CC_summary
A2: Data Ranges for the speedometers
A4: Clearing Customs On Time
A5: Start | B5: 0
A6: Red | B6: =Parameters!S54 -> 70
A7: Yellow | B7: =Parameters!R54-Parameters!S54 -> 10
A8: Green | B8: =Parameters!Q54-Parameters!R54 -> 20
A9: End | B9: 100
A10: Current Value | B10: =E20*100 -> 59.66386555
A11: Pointer | B11: 1.5
A12: End | B12: =200-(B10+B11) -> 138.8361345
A15: Row Labels | B15: a KPI | C15: Average of CC Documentation Accuracy | D15: a KPI | E15: Average of Clearing Customs On Time [1 = on time / 0 = delayed] | F15: a KPI
A16: jan | B16: 431.0344828 | C16: 0.8965517241 | D16: 0.5862068966 | E16: 0.5862068966 | F16: 0.9791666667
A17: feb | B17: 433.3333333 | C17: 0.9 | D17: 0.6 | E17: 0.6 | F17: 1.079861111
A18: mrt | B18: 435.483871 | C18: 0.8387096774 | D18: 0.6129032258 | E18: 0.6129032258 | F18: 1.145833333
A19: apr | B19: 413.7931034 | C19: 0.8793103448 | D19: 0.5862068966 | E19: 0.5862068966 | F19: 1.239583333
A20: Grand Total | B20: 428.5714286 | C20: 0.8781512605 | D20: 0.5966386555 | E20: 0.5966386555 | F20: 1.111111111
A24: a KPI | B24: Count
A25: 0.5 | B25: 15
A26: 1 | B26: 62
A27: 1.5 | B27: 11
A28: 2 | B28: 17
A29: 2.5 | B29: 9

Sheet Summary Tactical
A1: Data Ranges for the speedometers
B3: On Time | C3: Shipment Completeness
A4: Start | B4: 0 | C4: 0
A5: Red | B5: =Parameters!S9 -> 70 | C5: =Parameters!S15-Parameters!T15 -> 70
A6: Yellow | B6: =Parameters!R9-Parameters!S9 -> 10 | C6: =Parameters!R15-Parameters!S15 -> 10
A7: Green | B7: =Parameters!Q9-Parameters!R9 -> 20 | C7: =Parameters!Q15-Parameters!R15 -> 20
A8: End | B8: 100 | C8: 100
A9: Current Value | B9: =C29*100 -> 56.8627451 | C9: =D29*100 -> 87.39495798
A10: Pointer | B10: 1.5 | C10: 1.5
A11: End | B11: =200-(B9+B10) -> 141.6372549 | C11: =200-(C9+C10) -> 111.105042
A14: Average Delay [days] | B14: Count
A15: 1 | B15: 73
A16: 2 | B16: 13
A17: 3 | B17: 11
A18: 4 | B18: 11
A19: 5 | B19: 10
A20: 6 | B20: 1
A24: Row Labels | B24: Average of Shipment arriving to the correct location | C24: a KPI | D24: a KPI | E24: a KPI | F24: a KPI | G24: a KPI | H24: a KPI | I24: Storage Cost | J24: Transp. Cost | K24: Clearing Customs Cost | L24: a KPI | M24: a KPI
A25: jan | B25: 0.9032258065 | C25: 0.6021505376 | D25: 0.8817204301 | E25: 0.9327956989 | F25: 0.9072580645 | G25: 1.549731183 | H25: 0.9498207885 | I25: 2340 | J25: 15600 | K25: 15000 | L25: 1062.580645 | M25: 178581.2673
A26: feb | B26: 0.9655172414 | C26: 0.5747126437 | D26: 0.8390804598 | E26: 0.9568965517 | F26: 0.8979885057 | G26: 1.610632184 | H26: 0.9578544061 | I26: 2223 | J26: 14820 | K26: 13000 | L26: 1035.965517 | M26: 162406.5483
A27: mrt | B27: 0.8064516129 | C27: 0.5698924731 | D27: 0.9032258065 | E27: 0.9301075269 | F27: 0.9166666667 | G27: 1.502688172 | H27: 0.9569892473 | I27: 2403 | J27: 16020 | K27: 14000 | L27: 1045.903226 | M27: 166817.4513
A28: apr | B28: 0.8928571429 | C28: 0.5238095238 | D28: 0.869047619 | E28: 0.8988095238 | F28: 0.8839285714 | G28: 1.858630952 | H28: 0.9642857143 | I28: 2331 | J28: 15540 | K28: 11000 | L28: 1031.107143 | M28: 164522.2539
A29: Grand Total | B29: 0.8907563025 | C29: 0.568627451 | D29: 0.8739495798 | E29: 0.9299719888 | F29: 0.9019607843 | G29: 1.625 | H29: 0.9570494865 | I29: 9297 | J29: 61980 | K29: 53000 | L29: 1044.344538 | M29: 672327.5208

Sheet Summary Strategic
A1: Data Ranges for the speedometers
A3: On Time | C3: a KPI
A4: Start | B4: 0 | C4: 0
A5: Red | B5: =Parameters!S4 -> 70 | C5: =Parameters!S5 -> 70
A6: Yellow | B6: =Parameters!R4-Parameters!S4 -> 10 | C6: =Parameters!R5-Parameters!S5 -> 10
A7: Green | B7: =Parameters!Q4-Parameters!R4 -> 20 | C7: =Parameters!Q5-Parameters!R5 -> 20
A8: End | B8: 100 | C8: 100
A9: Current Value | B9: =D20*100 -> 35.29411765 | C9: =E20*100 -> 56.8627451
A10: Pointer | B10: 1.5 | C10: 1.5
A11: End | B11: =200-(B9+B10) -> 163.2058824 | C11: 141.6372549
A15: Row Labels | B15: Average of On Time Dispatching | C15: Average of On Time Delivery | D15: Average of On Time Clearing | E15: a KPI | F15: a KPI | G15: * | H15: * | I15: Sum of Total Logistics Cost | J15: Clearing Customs Cost | K15: Transp. Cost | L15: Storage Cost | M15: * | N15: * | O15: *
A16: jan | B16: 0.7741935484 | C16: 0.6774193548 | D16: 0.3548387097 | E16: 0.6021505376 | F16: 0.9072580645 | G16: 0.9327956989 | H16: 0.8817204301 | I16: 32940 | J16: 15000 | K16: 15600 | L16: 2340 | M16: 0.9677419355 | N16: 0.9892473118 | O16: 0.8924731183
A17: feb | B17: 0.6896551724 | C17: 0.724137931 | D17: 0.3103448276 | E17: 0.5747126437 | F17: 0.8979885057 | G17: 0.9568965517 | H17: 0.8390804598 | I17: 30043 | J17: 13000 | K17: 14820 | L17: 2223 | M17: 0.9655172414 | N17: 1 | O17: 0.908045977
A18: mrt | B18: 0.7741935484 | C18: 0.6129032258 | D18: 0.3225806452 | E18: 0.5698924731 | F18: 0.9166666667 | G18: 0.9301075269 | H18: 0.9032258065 | I18: 32423 | J18: 14000 | K18: 16020 | L18: 2403 | M18: 1 | N18: 0.9784946237 | O18: 0.8924731183
A19: apr | B19: 0.6428571429 | C19: 0.5 | D19: 0.4285714286 | E19: 0.5238095238 | F19: 0.8839285714 | G19: 0.8988095238 | H19: 0.869047619 | I19: 28871 | J19: 11000 | K19: 15540 | L19: 2331 | M19: 1 | N19: 0.9880952381 | O19: 0.9047619048
A20: Grand Total | B20: 0.7226890756 | C20: 0.6302521008 | D20: 0.3529411765 | E20: 0.568627451 | F20: 0.9019607843 | G20: 0.9299719888 | H20: 0.8739495798 | I20: 124277 | J20: 53000 | K20: 61980 | L20: 9297 | M20: 0.9831932773 | N20: 0.9887955182 | O20: 0.8991596639
